bitfinex/quotes_BTCUSD_20240718
["timestamp","ask_amount","ask_price","bid_price","bid_amount"]
[1721332846838,0.29455653,63614.0,63613.0,0.786002]
[1721332847053,0.23155653,63614.0,63613.0,0.886002]
[1721332847956,0.07717479,63621.0,63620.0,0.785915]
[1721332848186,0.23155653,63621.0,63620.0,0.471549]
[1721332848646,0.23155653,63621.0,63620.0,0.157183]
[1721332849144,0.23155653,63621.0,63620.0,0.471549]
[1721332849376,0.24255653,63621.0,63620.0,0.471549]
[1721332850075,0.25055653,63621.0,63620.0,0.472549]
[1721332850316,0.25055653,63621.0,63620.0,0.158183]
[1721332850553,0.25055653,63621.0,63620.0,0.001]
[1721332850778,0.25218416,63621.0,63620.0,0.001]
[1721332851010,0.25055653,63621.0,63620.0,0.001]
[1721332851668,0.25055653,63621.0,63620.0,0.158183]
[1721332851672,0.17338174,63621.0,63620.0,0.786915]
[1721332852608,0.019,63621.0,63620.0,1.101281]
[1721332852837,0.019,63621.0,63620.0,1.201281]
[1721332853225,0.019,63621.0,63620.0,0.19420606]
[1721332853226,0.31628174,63621.0,63620.0,0.19420606]
[1721332853425,0.31628174,63621.0,63620.0,0.1]
[1721332853789,0.16538174,63621.0,63620.0,0.571549]
[1721332854054,0.16638174,63621.0,63620.0,0.885915]
[1721332854272,0.15833183,63621.0,63620.0,0.885915]
[1721332854518,0.00395009,63621.0,63620.0,1.200281]
[1721332854739,0.005,63621.0,63620.0,1.200281]
[1721332855459,0.001,63621.0,63620.0,1.200281]
[1721332855903,0.00084,63626.0,63625.0,0.785852]
[1721332856120,0.00084,63626.0,63625.0,0.885852]
[1721332857415,0.00084,63626.0,63625.0,1.514534]
[1721332857857,0.00084,63626.0,63625.0,1.200193]
[1721332858510,0.00084,63626.0,63625.0,1.202193]
[1721332858724,0.00084,63626.0,63625.0,1.200193]
[1721332858967,0.00084,63626.0,63625.0,1.205193]
[1721332859234,0.00184,63626.0,63625.0,1.205193]
[1721332859470,0.00284,63626.0,63625.0,1.212193]
[1721332860374,0.00284,63626.0,63625.0,0.897852]
[1721332860600,0.00284,63626.0,63625.0,1.212193]
[1721332860819,0.00284,63626.0,63625.0,0.897852]
[1721332861260,0.15722174,63626.0,63625.0,0.897852]
[1721332861478,0.15722174,63626.0,63625.0,0.26917]
[1721332861695,0.15722174,63626.0,63625.0,0.897852]
[1721332861922,0.00284,63626.0,63625.0,0.897852]
[1721332862138,0.00284,63626.0,63625.0,1.212193]
[1721332862569,0.00284,63626.0,63625.0,1.526534]
[1721332862798,0.04976658,63633.0,63632.0,0.785767]
[1721332863027,0.04976658,63633.0,63632.0,1.200074]
[1721332863247,0.07717479,63638.0,63637.0,0.785705]
[1721332863463,0.23155653,63638.0,63637.0,0.785705]
[1721332863892,0.23416946,63638.0,63637.0,0.785705]
[1721332864779,0.23416946,63638.0,63637.0,0.471423]
[1721332864999,0.23916946,63638.0,63637.0,0.471423]
[1721332865224,0.23916946,63638.0,63637.0,0.157141]
[1721332865459,0.23916946,63638.0,63632.0,0.1]
[1721332865684,0.21518174,63636.0,63629.0,0.1]
[1721332865896,0.07717479,63630.0,63629.0,0.314322]
[1721332866119,0.23155653,63630.0,63629.0,0.571483]
[1721332866330,0.23417758,63630.0,63629.0,0.1]
[1721332866542,0.23417758,63630.0,63629.0,0.257161]
[1721332867040,0.23417758,63630.0,63629.0,0.1]
[1721332867256,0.23417758,63630.0,63619.0,0.314369]
[1721332867257,0.31607758,63630.0,63624.0,0.157173]
[1721332867467,0.15717574,63629.0,63625.0,0.1]
[1721332867942,0.00263569,63628.0,63625.0,0.1]
[1721332868126,0.15717574,63627.0,63625.0,0.1]
[1721332868386,0.00263209,63626.0,63625.0,0.1]
[1721332868623,0.15701383,63626.0,63624.0,0.001]
[1721332868888,0.22150937,63625.0,63602.0,0.0764]
[1721332869089,0.07717479,63610.0,63609.0,0.157209]
[1721332869313,0.0655,63609.0,63607.0,0.157213]
[1721332869533,0.15717574,63608.0,63606.0,0.314435]
[1721332869778,0.15975554,63608.0,63607.0,0.471644]
[1721332869979,0.15696154,63608.0,63607.0,0.471644]
[1721332870419,0.15696154,63608.0,63607.0,0.157214]
[1721332870653,0.15696154,63608.0,63607.0,0.003]
[1721332870859,0.15538174,63608.0,63607.0,0.003]
[1721332871283,0.15538174,63608.0,63599.0,0.314465]
[1721332871475,0.15538174,63608.0,63607.0,0.001]
[1721332871640,0.15438174,63608.0,63607.0,0.001]
[1721332871887,0.15538174,63608.0,63607.0,0.001]
[1721332872437,0.15538174,63608.0,63607.0,0.472645]
[1721332872626,0.15538174,63608.0,63607.0,0.571645]
[1721332872847,0.15538174,63608.0,63607.0,0.1]
[1721332873061,0.15738174,63608.0,63607.0,0.1]
[1721332873474,0.15738174,63608.0,63582.0,0.0503]
[1721332873475,0.15538174,63608.0,63582.0,0.0503]
[1721332873694,0.07880242,63610.0,63589.0,0.471778]
[1721332873695,0.07717479,63590.0,63589.0,0.471778]
[1721332873906,0.0621,63592.0,63591.0,0.157254]
[1721332874120,0.0621,63592.0,63591.0,0.471763]
[1721332874586,0.0621,63592.0,63583.0,1.5]
[1721332874587,0.21648174,63592.0,63583.0,1.5]
[1721332874795,0.15438174,63591.0,63590.0,0.157256]
[1721332875019,0.15438174,63591.0,63583.0,1.5]
[1721332875245,0.07717479,63588.0,63587.0,0.471793]
[1721332875455,0.15438174,63591.0,63590.0,0.157257]
[1721332875920,0.15438174,63591.0,63590.0,0.257257]
[1721332876123,0.0664,63599.0,63590.0,0.1]
[1721332876333,0.15438174,63598.0,63595.0,0.157244]
[1721332876548,0.23155653,63598.0,63595.0,0.157244]
[1721332877453,0.23155653,63597.0,63596.0,0.157242]
[1721332878382,0.15438174,63597.0,63596.0,0.157242]
[1721332878628,0.15438174,63597.0,63596.0,0.471727]
[1721332878860,0.15438174,63597.0,63596.0,0.786212]
[1721332879104,0.15438174,63597.0,63596.0,0.471727]
[1721332879318,0.15438174,63597.0,63592.0,0.314502]
[1721332879548,0.07717479,63595.0,63593.0,0.257247]
[1721332879776,0.15438174,63594.0,63593.0,0.1]
[1721332880735,0.15438174,63594.0,63593.0,0.25725]
[1721332880973,0.15438174,63594.0,63593.0,0.101]
[1721332881219,0.15438174,63594.0,63593.0,0.25725]
[1721332881453,0.0664,63599.0,63598.0,0.157237]
[1721332881673,0.15438174,63599.0,63598.0,0.157237]
[1721332881892,0.15438174,63599.0,63598.0,0.886187]
[1721332882607,0.0765,63609.0,63605.0,0.314439]
[1721332882826,0.15438174,63607.0,63604.0,0.314445]
[1721332883053,0.15438174,63607.0,63605.0,0.414437]
[1721332883292,0.15438174,63607.0,63606.0,0.78923126]
[1721332883540,0.15438174,63607.0,63606.0,0.886087]
[1721332884271,0.011,63607.0,63606.0,1.200522]
[1721332884744,0.12675649,63617.0,63610.0,0.314414]
[1721332884992,0.15717574,63616.0,63612.0,0.157202]
[1721332885215,0.15438174,63616.0,63606.0,0.415435]
[1721332885432,0.002794,63615.0,63614.0,0.157198]
[1721332885906,0.002794,63615.0,63609.0,0.31442]
[1721332886138,0.07717479,63610.0,63607.0,0.1]
[1721332886596,0.07717479,63610.0,63608.0,0.157212]
[1721332886597,0.002794,63609.0,63608.0,0.157212]
[1721332886827,0.07717479,63610.0,63608.0,0.157212]
[1721332887084,0.07717479,63610.0,63609.0,0.25721]
[1721332887576,0.08217479,63610.0,63609.0,0.25721]
[1721332887811,0.08217479,63610.0,63609.0,0.1]
[1721332888024,0.07717479,63610.0,63609.0,0.101]
[1721332888246,0.15438174,63610.0,63607.0,0.1]
[1721332888477,0.04999068,63620.0,63607.0,0.1]
[1721332888478,0.04999068,63620.0,63619.0,0.785927]
[1721332888726,0.04999068,63620.0,63619.0,2.66371323]
[1721332888950,0.00835,63640.0,63625.0,1.414534]
[1721332889173,0.00835,63640.0,63625.0,3.21377197]
[1721332889405,0.00835,63640.0,63625.0,2.1773475]
[1721332889625,0.00835,63640.0,63625.0,3.74741395]
[1721332889878,0.00835,63640.0,63625.0,3.77076213]
[1721332890099,0.00835,63640.0,63625.0,3.87522446]
[1721332890324,0.07717479,63638.0,63625.0,2.89117226]
[1721332890577,0.07717479,63638.0,63625.0,2.78670624]
[1721332890811,0.00835,63640.0,63625.0,2.78670624]
[1721332890812,0.00183,63626.0,63625.0,3.10604724]
[1721332891045,0.00183,63626.0,63625.0,3.10104724]
[1721332891286,0.00283,63626.0,63625.0,3.45438739]
[1721332891507,0.00383,63626.0,63625.0,3.46438739]
[1721332891968,0.00383,63626.0,63625.0,3.53446647]
[1721332892177,0.00383,63626.0,63625.0,3.46438419]
[1721332892349,0.00383,63626.0,63625.0,3.92214275]
[1721332892845,0.00835,63640.0,63638.0,1.414246]
[1721332893071,0.00835,63640.0,63638.0,2.28614908]
[1721332893527,0.00835,63640.0,63638.0,2.23303041]
[1721332893741,0.00835,63640.0,63638.0,2.28594319]
[1721332893964,0.00835,63640.0,63638.0,2.33594319]
[1721332894206,0.00935,63639.0,63638.0,2.3862391]
[1721332894445,0.00935,63639.0,63638.0,2.43416105]
[1721332894703,0.02235,63639.0,63638.0,3.57323001]
[1721332894906,0.00835,63639.0,63638.0,3.47166619]
[1721332895363,0.02235,63639.0,63638.0,3.47166619]
[1721332895605,0.02335,63639.0,63638.0,3.47266619]
[1721332896077,0.02335,63639.0,63638.0,3.373046]
[1721332896317,0.02335,63639.0,63638.0,3.687323]
[1721332896530,0.00935,63639.0,63638.0,3.52047249]
[1721332896757,0.00835,63639.0,63638.0,3.51947249]
[1721332896990,0.00835,63639.0,63638.0,1.91996795]
[1721332897248,0.00835,63639.0,63638.0,1.92768787]
[1721332897521,0.00835,63639.0,63638.0,1.874046]
[1721332897977,0.00835,63639.0,63638.0,1.92868787]
[1721332898225,0.00835,63639.0,63638.0,1.875046]
[1721332898441,0.00835,63639.0,63638.0,1.872046]
[1721332898892,0.00835,63639.0,63638.0,1.886046]
[1721332899775,0.00935,63639.0,63638.0,1.849746]
[1721332900492,0.00835,63639.0,63638.0,1.821746]
[1721332900949,0.00935,63639.0,63638.0,1.849746]
[1721332901378,0.00935,63639.0,63638.0,2.589746]
[1721332901820,0.00935,63639.0,63638.0,1.849746]
[1721332902343,0.00935,63639.0,63638.0,1.455969]
[1721332902538,0.00935,63639.0,63638.0,1.227969]
[1721332903412,0.00935,63639.0,63638.0,1.213969]
[1721332903623,0.00835,63639.0,63638.0,1.199969]
[1721332903847,0.00835,63639.0,63638.0,1.203969]
[1721332904063,0.00935,63639.0,63638.0,1.211969]
[1721332904316,0.00935,63639.0,63638.0,1.199969]
[1721332904592,0.00935,63639.0,63625.0,1.5]
[1721332904593,0.1454,63638.0,63637.0,0.157141]
[1721332904831,0.29978174,63638.0,63637.0,0.471423]
[1721332906460,0.29978174,63638.0,63637.0,0.571423]
[1721332906673,0.29978174,63638.0,63637.0,0.576423]
[1721332906902,0.29978174,63638.0,63637.0,0.571423]
[1721332907336,0.29978174,63638.0,63637.0,0.576423]
[1721332907559,0.29978174,63638.0,63637.0,0.109]
[1721332907782,0.29978174,63638.0,63637.0,0.009]
[1721332908459,0.29978174,63638.0,63637.0,0.266141]
[1721332908936,0.29978174,63638.0,63637.0,0.894705]
[1721332909151,0.29978174,63638.0,63637.0,0.889705]
[1721332909580,0.30278174,63638.0,63637.0,0.889705]
[1721332910220,0.29978174,63638.0,63637.0,0.889705]
[1721332910428,0.29978174,63638.0,63637.0,0.885705]
[1721332910635,0.30078174,63638.0,63637.0,0.888705]
[1721332910903,0.001,63638.0,63637.0,1.202987]
[1721332911120,0.00835,63639.0,63638.0,1.099969]
[1721332911337,0.00835,63639.0,63638.0,1.199969]
[1721332912713,0.00835,63639.0,63638.0,1.201969]
[1721332913423,0.00835,63639.0,63638.0,1.830523]
[1721332913648,1e-08,63639.0,63638.0,1.92906103]
[1721332913902,1e-08,63639.0,63638.0,3.43106103]
[1721332914147,1e-08,63639.0,63638.0,3.11678403]
[1721332914374,1e-08,63639.0,63638.0,3.1714259]
[1721332914587,1e-08,63639.0,63638.0,3.11778403]
[1721332914815,1e-08,63639.0,63638.0,3.12678403]
[1721332915258,1e-08,63639.0,63638.0,3.019246]
[1721332915506,1e-08,63639.0,63638.0,3.12891678]
[1721332915751,1e-08,63639.0,63638.0,3.12421786]
[1721332915973,0.00100001,63639.0,63638.0,3.13821786]
[1721332916203,1e-08,63639.0,63638.0,3.12421786]
[1721332916708,0.00100001,63639.0,63638.0,1.63721786]
[1721332916933,0.00100001,63639.0,63638.0,1.30994086]
[1721332917177,0.00200001,63639.0,63638.0,1.32394086]
[1721332917409,1e-08,63639.0,63638.0,1.29894086]
[1721332918074,1e-08,63639.0,63638.0,1.31294086]
[1721332918300,1e-08,63639.0,63638.0,1.528246]
[1721332918525,1e-08,63639.0,63638.0,1.77720305]
[1721332918962,0.00100001,63639.0,63638.0,1.80220305]
[1721332919258,1e-08,63639.0,63638.0,1.78820305]
[1721332919741,0.00100001,63639.0,63638.0,1.48792605]
[1721332920225,1e-08,63639.0,63638.0,1.78820305]
[1721332920489,0.00100001,63639.0,63638.0,1.80220305]
[1721332920962,0.00100001,63639.0,63638.0,1.79090769]
[1721332921498,0.00100001,63639.0,63638.0,1.3225877]
[1721332921918,0.00100001,63639.0,63638.0,1.3135877]
[1721332922400,0.00100001,63639.0,63638.0,1.47663095]
[1721332923103,0.00100001,63639.0,63638.0,1.79090795]
[1721332923320,0.00100001,63639.0,63638.0,2.67090795]
[1721332923538,0.00100001,63639.0,63638.0,1.80490795]
[1721332923780,0.00100001,63639.0,63638.0,2.56490795]
[1721332924241,0.00100001,63639.0,63638.0,2.56511838]
[1721332925341,0.00100001,63639.0,63638.0,4.06511838]
[1721332926261,0.00100001,63639.0,63638.0,4.24721838]
[1721332926507,0.00100001,63639.0,63638.0,3.17294138]
[1721332926969,0.00100001,63639.0,63638.0,3.172759]
[1721332927219,0.00100001,63639.0,63638.0,1.32761575]
[1721332927899,0.06640001,63639.0,63638.0,1.32761575]
[1721332929724,0.00835,63640.0,63638.0,1.32761575]
[1721332929939,0.00835,63640.0,63639.0,1.29954751]
[1721332931033,0.00935,63640.0,63639.0,1.31354751]
[1721332931491,0.24533174,63640.0,63639.0,0.16723738]
[1721332931756,0.29835096,63640.0,63639.0,0.014]
[1721332932024,0.29997859,63640.0,63639.0,0.028]
[1721332932257,0.29997859,63640.0,63618.0,0.04680124]
[1721332932258,0.0803,63639.0,63620.0,0.934282]
[1721332932504,0.0803,63631.0,63620.0,0.934282]
[1721332932724,0.22978174,63630.0,63620.0,0.934282]
[1721332932998,0.139,63628.0,63620.0,0.934282]
[1721332933209,0.29338174,63628.0,63620.0,0.934282]
[1721332933434,0.29338174,63628.0,63621.0,0.15718]
[1721332933651,0.29338174,63628.0,63620.0,0.934283]
[1721332934360,0.29338174,63628.0,63627.0,0.631765]
[1721332935953,0.29338174,63628.0,63627.0,0.633765]
[1721332936166,0.29338174,63628.0,63627.0,0.161165]
[1721332938539,0.29338174,63628.0,63627.0,0.475496]
[1721332939723,0.29338174,63628.0,63627.0,0.004]
[1721332940164,0.29338174,63628.0,63627.0,0.161165]
[1721332941059,0.21798174,63628.0,63627.0,0.789827]
[1721332941280,0.21798174,63628.0,63627.0,0.475496]
[1721332943091,0.21798174,63628.0,63627.0,0.161165]
[1721332943799,0.21798174,63628.0,63627.0,0.004]
[1721332944252,0.29468174,63628.0,63627.0,0.004]
[1721332945219,0.29468174,63628.0,63627.0,0.002]
[1721332945460,0.30068174,63628.0,63627.0,0.002]
[1721332945713,0.30068174,63628.0,63625.0,0.157169]
[1721332945942,0.30068174,63628.0,63624.0,0.157173]
[1721332945943,0.15438174,63627.0,63624.0,0.157173]
[1721332946382,0.15438174,63627.0,63625.0,0.157169]
[1721332946806,0.15438174,63627.0,63619.0,0.1]
[1721332946807,0.07717479,63626.0,63619.0,0.1]
[1721332947040,0.15438174,63625.0,63617.0,0.414378]
[1721332947304,0.15438174,63625.0,63619.0,0.157185]
[1721332947515,0.15438174,63625.0,63620.0,0.1]
[1721332948487,0.15438174,63625.0,63621.0,0.15718]
[1721332948944,0.15438174,63625.0,63623.0,0.157174]
[1721332949156,0.15738174,63625.0,63624.0,0.157173]
[1721332949627,0.15438174,63625.0,63624.0,0.785865]
[1721332949842,0.15438174,63625.0,63624.0,0.471519]
[1721332950089,0.15938174,63625.0,63624.0,1.100211]
[1721332950300,0.15738174,63625.0,63624.0,1.200211]
[1721332950534,0.15638174,63625.0,63624.0,1.200211]
[1721332950800,0.002,63625.0,63624.0,1.200211]
[1721332951059,0.002,63625.0,63624.0,2.0938531]
[1721332951060,0.003,63625.0,63624.0,2.0938531]
[1721332951283,0.04965682,63637.0,63636.0,1.100004]
[1721332951526,0.00083,63639.0,63638.0,0.785692]
[1721332951756,0.00083,63639.0,63638.0,1.514246]
[1721332951987,0.00083,63639.0,63638.0,1.574446]
[1721332952240,0.00083,63639.0,63638.0,1.67747785]
[1721332952707,0.00083,63639.0,63638.0,3.17747763]
[1721332952962,0.00183,63639.0,63638.0,3.18147763]
[1721332953202,0.00283,63639.0,63638.0,3.19147763]
[1721332954395,0.00283,63639.0,63638.0,3.27187763]
[1721332954862,0.00283,63639.0,63638.0,3.27183112]
[1721332955730,0.00283,63639.0,63638.0,4.44610812]
[1721332955965,0.00283,63639.0,63638.0,4.67933455]
[1721332956172,0.00283,63639.0,63638.0,4.9775858]
[1721332956411,0.00283,63639.0,63638.0,4.90738237]
[1721332956636,0.00283,63639.0,63638.0,4.97755042]
[1721332957092,0.00283,63639.0,63638.0,4.97755114]
[1721332957320,0.00283,63639.0,63638.0,4.55913112]
[1721332958050,0.00283,63639.0,63638.0,4.62930108]
[1721332958279,0.00283,63639.0,63638.0,4.55913112]
[1721332958514,0.00283,63639.0,63638.0,4.1286041]
[1721332958734,0.00283,63639.0,63638.0,3.3186041]
[1721332960705,0.00283,63639.0,63638.0,3.27183112]
[1721332960940,0.00283,63639.0,63638.0,2.713969]
[1721332961177,0.00283,63639.0,63638.0,2.81698781]
[1721332961410,0.00283,63639.0,63638.0,2.713969]
[1721332961653,0.00283,63639.0,63638.0,2.81699244]
[1721332962105,0.00283,63639.0,63638.0,2.81684186]
[1721332962563,0.00283,63639.0,63638.0,3.13111886]
[1721332963411,0.00283,63639.0,63638.0,2.81684186]
[1721332964323,0.00283,63639.0,63638.0,2.81697094]
[1721332965649,0.00283,63639.0,63638.0,3.13124794]
[1721332966286,0.04929348,63651.0,63639.0,1.099952]
[1721332966535,0.04929348,63651.0,63639.0,1.30295394]
[1721332966763,0.00806538,63640.0,63639.0,1.61722594]
[1721332966975,0.00806538,63640.0,63639.0,3.97722594]
[1721332967192,0.00806538,63640.0,63639.0,3.874224]
[1721332967430,0.00806538,63640.0,63639.0,3.97678368]
[1721332967670,0.00906538,63640.0,63639.0,4.44265568]
[1721332968083,0.00906538,63640.0,63639.0,4.07838368]
[1721332968503,0.00906538,63640.0,63639.0,4.0785142]
[1721332968714,0.01006538,63640.0,63639.0,4.0875142]
[1721332969585,0.01006538,63640.0,63639.0,4.4017862]
[1721332969808,0.01006538,63640.0,63639.0,4.49854779]
[1721332970467,0.01006538,63640.0,63639.0,4.49818538]
[1721332970683,0.002794,63657.0,63640.0,1.414201]
[1721332970891,0.002794,63657.0,63640.0,2.42654746]
[1721332971980,0.00935,63641.0,63640.0,2.43454746]
[1721332972218,0.01035,63641.0,63640.0,2.44154746]
[1721332973631,0.01035,63641.0,63640.0,2.339201]
[1721332973842,0.01035,63641.0,63640.0,2.44137393]
[1721332974320,0.01035,63641.0,63640.0,4.41002267]
[1721332974538,0.01035,63641.0,63640.0,4.46002267]
[1721332974764,0.01035,63641.0,63640.0,4.41002267]
[1721332974985,0.01035,63641.0,63640.0,4.46002267]
[1721332975956,0.01035,63641.0,63640.0,4.41002267]
[1721332976174,0.01035,63641.0,63640.0,4.57304459]
[1721332976390,0.01035,63641.0,63640.0,4.62304459]
[1721332976609,0.01035,63641.0,63640.0,4.52087166]
[1721332976847,0.01035,63641.0,63640.0,4.62259533]
[1721332977061,0.01035,63641.0,63640.0,4.57259533]
[1721332979884,0.01035,63641.0,63640.0,4.57244239]
[1721332980123,0.01035,63641.0,63640.0,4.47087166]
[1721332980333,0.01035,63641.0,63640.0,4.41768471]
[1721332981211,1e-08,63641.0,63640.0,4.41768471]
[1721332981437,1e-08,63641.0,63640.0,4.38768471]
[1721332981700,1e-08,63641.0,63640.0,4.43768471]
[1721332981917,1e-08,63641.0,63640.0,4.52056155]
[1721332982146,1e-08,63641.0,63640.0,4.38783746]
[1721332982376,1e-08,63641.0,63640.0,4.52087034]
[1721332982598,1e-08,63641.0,63640.0,4.38783746]
[1721332982830,1e-08,63641.0,63640.0,4.52087034]
[1721332983099,1e-08,63641.0,63640.0,4.57087034]
[1721332983345,1e-08,63641.0,63640.0,4.72201459]
[1721332983781,1e-08,63641.0,63640.0,4.77201459]
[1721332984466,1e-08,63641.0,63640.0,4.72525208]
[1721332984706,1e-08,63641.0,63640.0,4.67525208]
[1721332985181,1e-08,63641.0,63640.0,4.67374173]
[1721332986958,1e-08,63641.0,63640.0,3.89374173]
[1721332987174,1e-08,63641.0,63640.0,3.94054079]
[1721332987610,1e-08,63641.0,63640.0,4.78054079]
[1721332987839,1e-08,63641.0,63640.0,4.64823827]
[1721332988066,1e-08,63641.0,63640.0,4.78054079]
[1721332988287,1e-08,63641.0,63640.0,3.80846081]
[1721332988511,1e-08,63641.0,63640.0,3.94096614]
[1721332988732,1e-08,63641.0,63640.0,3.80845875]
[1721332988937,1e-08,63641.0,63640.0,4.70095497]
[1721332989146,1e-08,63641.0,63640.0,4.56845875]
[1721332989358,1e-08,63641.0,63640.0,4.65416577]
[1721332989630,1e-08,63641.0,63640.0,3.89416577]
[1721332989872,1e-08,63641.0,63640.0,4.64416755]
[1721332990285,1e-08,63641.0,63640.0,2.34397735]
[1721332990515,1e-08,63641.0,63640.0,1.47875559]
[1721332990734,0.05181313,63644.0,63643.0,1.099882]
[1721332990950,0.05181313,63644.0,63643.0,1.46370359]
[1721332992051,0.05181313,63644.0,63643.0,1.46770359]
[1721332992477,0.05181313,63644.0,63643.0,1.47270359]
[1721332992703,0.0815,63648.0,63647.0,1.099815]
[1721332992907,0.0815,63648.0,63647.0,1.30061289]
[1721332993802,0.1428,63648.0,63647.0,1.30061289]
[1721332994436,0.1428,63648.0,63647.0,1.199815]
[1721332994665,0.07717479,63658.0,63653.0,0.785507]
[1721332994666,0.0805,63654.0,63653.0,0.785507]
[1721332994899,0.0805,63654.0,63653.0,0.98699191]
[1721332995106,0.0805,63654.0,63653.0,1.30119491]
[1721332995334,0.1418,63654.0,63653.0,1.30119491]
[1721332995792,0.1488,63654.0,63653.0,1.30219491]
[1721332996251,0.1418,63654.0,63653.0,1.37155186]
[1721332996876,0.1458,63654.0,63653.0,1.37155186]
[1721332997096,0.1458,63654.0,63653.0,1.71980416]
[1721332997341,0.1458,63654.0,63653.0,1.64944721]
[1721332997578,0.1478,63654.0,63653.0,1.6491078]
[1721332997801,0.1498,63654.0,63653.0,3.1491078]
[1721332998013,0.1498,63654.0,63653.0,2.69971]
[1721332998236,0.1478,63654.0,63653.0,3.14867721]
[1721332998489,0.1498,63654.0,63653.0,3.14867721]
[1721332999131,0.1478,63654.0,63653.0,3.14867721]
[1721332999347,0.1428,63654.0,63653.0,3.24264716]
[1721332999565,0.1438,63654.0,63653.0,3.24264716]
[1721332999821,0.1438,63654.0,63653.0,2.92844416]
[1721333000011,0.1438,63654.0,63653.0,0.71901923]
[1721333000242,0.1438,63654.0,63653.0,0.67202076]
[1721333000948,0.1438,63654.0,63653.0,0.98622376]
[1721333001190,0.1438,63654.0,63653.0,0.67202076]
[1721333001896,0.1438,63654.0,63653.0,0.98622376]
[1721333002341,0.1438,63654.0,63653.0,0.67202076]
[1721333002807,0.1438,63654.0,63653.0,0.98622376]
[1721333003238,0.1438,63654.0,63653.0,0.67202076]
[1721333003459,0.1438,63654.0,63653.0,0.98622376]
[1721333003875,0.1438,63654.0,63653.0,0.571304]
[1721333004128,0.1438,63654.0,63653.0,0.67626228]
[1721333004809,0.1438,63654.0,63653.0,0.99046528]
[1721333007110,0.1438,63654.0,63653.0,1.03762905]
[1721333007351,0.1438,63654.0,63653.0,0.99062339]
[1721333007585,0.1438,63654.0,63653.0,0.9906319]
[1721333008060,0.1438,63654.0,63653.0,1.03764272]
[1721333008757,0.1438,63654.0,63653.0,1.72360169]
[1721333009013,0.002,63654.0,63653.0,1.65308546]
[1721333009248,0.002,63654.0,63653.0,1.93362325]
[1721333009470,0.002,63654.0,63653.0,1.81609619]
[1721333009957,0.002,63654.0,63653.0,1.9335846]
[1721333010196,0.002,63654.0,63653.0,1.81607183]
[1721333010653,0.002,63654.0,63653.0,1.77057038]
[1721333010888,0.002,63654.0,63653.0,1.6530611]
[1721333011102,0.002,63654.0,63653.0,1.74707144]
[1721333011334,0.002,63654.0,63653.0,1.70563053]
[1721333012214,0.00283,63654.0,63653.0,3.29965145]
[1721333012441,0.00283,63654.0,63653.0,3.29964383]
[1721333013131,0.00283,63654.0,63653.0,2.69971]
[1721333013349,0.00283,63654.0,63653.0,3.29972026]
[1721333016412,0.00283,63654.0,63653.0,3.30358965]
[1721333016876,0.00283,63654.0,63653.0,3.30328424]
[1721333017351,0.15721174,63654.0,63653.0,0.68013118]
[1721333018763,0.15721174,63654.0,63653.0,0.36592818]
[1721333020416,0.15721174,63654.0,63653.0,0.68013118]
[1721333020877,0.15721174,63654.0,63653.0,0.99433418]
[1721333022205,0.00283,63654.0,63653.0,1.3555477]
[1721333022420,0.00283,63654.0,63653.0,1.30853718]
[1721333022636,0.00283,63654.0,63653.0,2.80853718]
[1721333025066,0.00283,63654.0,63653.0,1.30853718]
[1721333025737,0.00283,63654.0,63653.0,1.19971]
[1721333025979,0.00283,63654.0,63653.0,1.31035894]
[1721333026209,0.00283,63654.0,63653.0,1.31035503]
[1721333027458,0.15721174,63654.0,63653.0,0.68194903]
[1721333027659,0.15721174,63654.0,63653.0,0.21064503]
[1721333028783,0.15721174,63654.0,63653.0,0.21107504]
[1721333029201,0.15721174,63654.0,63653.0,0.21141186]
[1721333031675,0.15721174,63654.0,63653.0,0.36851286]
[1721333032404,0.15721174,63654.0,63653.0,0.36831711]
[1721333035319,0.15721174,63654.0,63653.0,0.37184184]
[1721333035854,0.15721174,63654.0,63653.0,0.37183867]
[1721333036238,0.15721174,63654.0,63653.0,0.37163474]
[1721333036914,0.15721174,63654.0,63653.0,0.68583774]
[1721333038478,0.15721174,63654.0,63653.0,0.571304]
[1721333038700,0.15721174,63654.0,63653.0,0.68524253]
[1721333041143,0.15721174,63654.0,63653.0,0.68565696]
[1721333041822,0.29821174,63654.0,63653.0,0.21435296]
[1721333042257,0.34340191,63654.0,63653.0,0.1]
[1721333042510,0.34340191,63654.0,63647.0,0.1]
[1721333042758,0.34340191,63654.0,63648.0,0.11468834]
[1721333042759,0.07717479,63649.0,63648.0,0.11468834]
[1721333043006,0.23155653,63649.0,63648.0,0.21468834]
[1721333043983,0.23155653,63649.0,63648.0,0.1]
[1721333044219,0.23155653,63649.0,63648.0,0.22608603]
[1721333044467,0.23155653,63649.0,63648.0,0.22608015]
[1721333044933,0.23155653,63649.0,63648.0,0.22610388]
[1721333045862,0.23155653,63649.0,63648.0,0.23510388]
[1721333047249,0.23155653,63649.0,63648.0,0.104]
[1721333047465,0.23155653,63649.0,63648.0,0.1265758]
[1721333047679,0.23155653,63649.0,63648.0,0.2265758]
[1721333047680,0.15438174,63649.0,63648.0,0.2265758]
[1721333048082,0.15538174,63649.0,63648.0,0.2265758]
[1721333048753,0.15938174,63649.0,63648.0,0.2265758]
[1721333049208,0.15938174,63649.0,63648.0,0.22610364]
[1721333050276,0.15938174,63649.0,63648.0,0.1]
[1721333050494,0.15938174,63649.0,63648.0,0.22597199]
[1721333050734,0.16338174,63649.0,63648.0,0.22597199]
[1721333051246,0.16338174,63649.0,63648.0,0.69731399]
[1721333051247,0.009,63649.0,63648.0,0.69731399]
[1721333051459,0.009,63649.0,63648.0,1.01154199]
[1721333052526,0.004,63649.0,63648.0,1.01154199]
[1721333052749,0.006,63649.0,63648.0,1.01154199]
[1721333052970,0.15638174,63649.0,63648.0,0.22597199]
[1721333053414,0.15838174,63649.0,63648.0,0.1]
[1721333053635,0.15838174,63649.0,63648.0,0.12540032]
[1721333053846,0.15838174,63649.0,63648.0,0.22540108]
[1721333056554,0.15838174,63649.0,63648.0,0.257114]
[1721333056764,0.15838174,63649.0,63648.0,0.38670967]
[1721333057610,0.15838174,63649.0,63648.0,0.22959567]
[1721333058034,0.15838174,63649.0,63648.0,0.38670967]